bitfinex/quotes_SOLUSD_20250604
["timestamp","ask_amount","ask_price","bid_price","bid_amount"]
[1749049012076,1.5289,156.53,156.41,45.14964886]
[1749049012257,26.0,156.51,156.42,0.26216157]
[1749049012672,26.0,156.51,156.42,0.40432314]
[1749049012974,26.0,156.51,156.42,18.76964886]
[1749049013280,26.0,156.51,156.43,0.42648471]
[1749049013877,1.5289,156.53,156.43,0.42648471]
[1749049014084,27.5289,156.53,156.43,0.42648471]
[1749049019677,26.0,156.51,156.43,0.42648471]
[1749049022777,26.0,156.51,156.43,19.21829514]
[1749049023479,1.5289,156.53,156.43,19.21829514]
[1749049023672,26.0,156.51,156.43,19.21829514]
[1749049024883,26.0,156.51,156.43,0.14216157]
[1749049025058,26.0,156.51,156.43,0.26216157]
[1749049029592,26.0,156.51,156.44,0.14216157]
[1749049031061,26.0,156.54,156.44,0.14216157]
[1749049031267,26.0,156.54,156.41,0.5]
[1749049031268,26.0,156.5,156.41,0.5]
[1749049031582,1.5821,156.49,156.39,0.14216157]
[1749049031789,1.5821,156.49,156.39,0.42648471]
[1749049032362,1.5821,156.49,156.39,0.14216157]
[1749049032567,1.5821,156.49,156.39,0.42648471]
[1749049033660,1.5821,156.49,156.38,0.14216157]
[1749049033877,1.5821,156.49,156.37,18.79181043]
[1749049034097,26.0,156.45,156.38,0.14216157]
[1749049034596,26.0,156.45,156.38,0.42648471]
[1749049035778,1.6046,156.44,156.35,0.14216157]
[1749049035970,1.6046,156.44,156.34,18.79181043]
[1749049036564,1.6046,156.44,156.35,0.5]
[1749049037057,1.6046,156.44,156.35,0.64216157]
[1749049037262,1.6046,156.44,156.35,0.5]
[1749049037664,1.6046,156.44,156.35,0.64216157]
[1749049038560,1.6046,156.44,156.35,0.14216157]
[1749049039063,1.6046,156.44,156.36,0.14216157]
[1749049039268,1.6046,156.44,156.34,0.56864628]
[1749049040392,1.6046,156.44,156.32,0.56864628]
[1749049040887,1.6046,156.44,156.32,26.56864628]
[1749049041465,6.3668,156.43,156.32,0.56864628]
[1749049041804,6.3668,156.43,156.32,0.14216157]
[1749049041968,26.0,156.42,156.32,0.14216157]
[1749049043985,26.0,156.42,156.31,0.42648471]
[1749049046202,26.0,156.4,156.31,0.42648471]
[1749049046502,26.0,156.4,156.31,19.21829514]
[1749049046668,6.3668,156.43,156.31,19.21829514]
[1749049046868,26.0,156.42,156.31,19.21829514]
[1749049047168,6.3668,156.43,156.35,0.56864628]
[1749049050481,6.3668,156.43,156.35,0.14216157]
[1749049051794,26.0,156.4,156.32,0.56864628]
[1749049061511,26.0,156.43,156.34,0.56864628]
[1749049066741,26.0,156.43,156.36,0.14216157]
[1749049074532,1.6046,156.44,156.38,0.14216157]
[1749049074835,1.6046,156.44,156.38,0.56864628]
[1749049075037,6.4618,156.46,156.38,0.56864628]
[1749049076533,26.0,156.47,156.38,0.56864628]
[1749049082832,26.0,156.46,156.37,0.14216157]
[1749049083256,26.0,156.46,156.36,0.14216157]
[1749049083554,26.0,156.46,156.36,0.28432314]
[1749049083726,26.0,156.46,156.36,0.42648471]
[1749049083929,26.0,156.46,156.36,0.56864628]
[1749049084451,26.0,156.46,156.38,0.14216157]
[1749049084830,26.0,156.46,156.36,19.21829514]
[1749049085055,26.0,156.46,156.37,0.42648471]
[1749049085234,26.0,156.46,156.38,0.14216157]
[1749049088663,27.5502,156.48,156.38,0.14216157]
[1749049090452,1.5502,156.48,156.41,0.56864628]
[1749049091452,1.5834,156.52,156.43,0.56864628]
[1749049091665,26.0,156.5,156.43,0.56864628]
[1749049092331,1.5834,156.52,156.43,0.56864628]
[1749049092538,27.5834,156.52,156.43,0.56864628]
[1749049093853,0.8677765,156.6,156.57,0.14216157]
[1749049094058,0.8677765,156.6,156.57,26.14216157]
[1749049094230,0.8677765,156.6,156.58,0.28432314]
[1749049094623,0.8677765,156.6,156.58,0.42648471]
[1749049094859,0.8677765,156.6,156.59,0.14216157]
[1749049095634,0.8677765,156.6,156.59,19.21829514]
[1749049097263,0.8677765,156.6,156.59,45.21829514]
[1749049097432,0.8677765,156.6,156.59,19.21829514]
[1749049098734,4.17116886,156.71,156.63,0.14216157]
[1749049098944,4.17116886,156.71,156.63,0.56864628]
[1749049099559,4.17116886,156.71,156.63,26.56864628]
[1749049101773,4.17116886,156.71,156.64,0.5]
[1749049102148,4.17116886,156.71,156.63,26.56864628]
[1749049102772,4.17116886,156.71,156.63,26.42648471]
[1749049104073,2.54356886,156.71,156.64,0.14216157]
[1749049104592,2.54356886,156.71,156.63,26.42648471]
[1749049104750,2.54356886,156.71,156.67,26.0]
[1749049105187,2.54356886,156.71,156.65,0.42648471]
[1749049105492,2.54356886,156.71,156.66,0.14216157]
[1749049107278,2.54356886,156.71,156.61,18.79181043]
[1749049107658,2.54356886,156.71,156.65,0.42648471]
[1749049107976,2.54356886,156.71,156.65,19.21829514]
[1749049108684,2.54356886,156.71,156.68,26.0]
[1749049110490,2.54356886,156.71,156.65,19.21829514]
[1749049110664,2.54356886,156.71,156.64,26.0]
[1749049110862,2.54356886,156.71,156.62,0.28432314]
[1749049111167,2.54356886,156.71,156.62,0.14216157]
[1749049111377,2.54356886,156.71,156.62,0.56864628]
[1749049111681,2.54356886,156.71,156.64,26.0]
[1749049114472,2.54356886,156.71,156.65,0.42648471]
[1749049114775,2.54356886,156.71,156.65,0.56864628]
[1749049116582,2.54356886,156.71,156.65,19.21829514]
[1749049116786,2.54356886,156.71,156.65,45.21829514]
[1749049117555,2.54356886,156.71,156.67,0.28432314]
[1749049119287,2.54356886,156.71,156.67,0.56864628]
[1749049123596,2.54356886,156.71,156.67,0.28432314]
[1749049124175,2.54356886,156.71,156.67,0.14216157]
[1749049125690,2.54356886,156.71,156.68,0.28432314]
[1749049125880,2.54356886,156.71,156.68,0.42648471]
[1749049126996,2.54356886,156.71,156.64,26.0]
[1749049127196,2.54356886,156.71,156.65,0.56864628]
[1749049127899,2.54356886,156.71,156.65,0.42648471]
[1749049128806,4.15196886,156.71,156.61,9.74250162]
[1749049128986,4.15196886,156.71,156.58,18.79181043]
[1749049129485,4.15196886,156.71,156.62,0.42648471]
[1749049129685,4.15196886,156.71,156.62,0.14216157]
[1749049130099,4.15196886,156.71,156.62,0.42648471]
[1749049132579,4.15196886,156.71,156.61,0.14216157]
[1749049133484,4.15196886,156.71,156.6,26.0]
[1749049134583,4.15196886,156.71,156.61,0.5]
[1749049135007,4.15196886,156.71,156.61,0.78432314]
[1749049138008,26.0,156.69,156.61,0.5]
[1749049138181,26.0,156.69,156.59,0.14216157]
[1749049139893,26.0,156.69,156.6,0.28432314]
[1749049140816,4.15196886,156.71,156.62,19.21829514]
[1749049145905,4.15196886,156.71,156.62,45.21829514]
[1749049151017,2.54356886,156.71,156.66,0.56864628]
[1749049151194,2.54356886,156.71,156.66,26.56864628]
[1749049154805,2.54356886,156.71,156.63,7.7367]
[1749049154806,2.54356886,156.71,156.64,19.21829514]
[1749049155008,2.54356886,156.71,156.66,0.42648471]
[1749049157022,2.54356886,156.71,156.66,0.28432314]
[1749049158717,2.54356886,156.71,156.65,0.14216157]
[1749049164234,2.54356886,156.71,156.68,26.56864628]
[1749049169739,2.54356886,156.71,156.67,26.0]
[1749049174212,2.54356886,156.71,156.63,7.7367]
[1749049174213,2.54356886,156.71,156.64,0.56864628]
[1749049174406,2.54356886,156.71,156.64,0.12]
[1749049174826,2.54356886,156.71,156.64,0.26216157]
[1749049175022,2.54356886,156.71,156.64,0.28432314]
[1749049175445,2.54356886,156.71,156.64,0.42648471]
[1749049176240,2.54356886,156.71,156.64,19.07613357]
[1749049176419,2.54356886,156.71,156.65,18.79181043]
[1749049176743,2.54356886,156.71,156.66,0.28432314]
[1749049179631,2.54356886,156.71,156.68,0.42648471]
[1749049181019,2.54356886,156.71,156.68,0.56864628]
[1749049181326,2.54356886,156.71,156.68,26.56864628]
[1749049185136,2.54356886,156.71,156.7,0.28432314]
[1749049188151,2.54356886,156.71,156.7,19.21829514]
[1749049191664,2.54356886,156.71,156.7,45.21829514]
[1749049192636,2.54356886,156.71,156.7,26.56864628]
[1749049193263,2.54356886,156.71,156.7,26.28432314]
[1749049193446,2.54356886,156.71,156.7,26.56864628]
[1749049196062,2.54356886,156.71,156.7,0.56864628]
[1749049199755,2.54356886,156.71,156.7,0.42648471]
[1749049200149,2.54356886,156.71,156.7,0.28432314]
[1749049200363,2.54356886,156.71,156.7,0.14216157]
[1749049205988,2.54356886,156.71,156.7,26.42648471]
[1749049206275,2.54356886,156.71,156.7,26.56864628]
[1749049209685,2.54356886,156.71,156.7,0.56864628]
[1749049210290,2.54356886,156.71,156.7,0.42648471]
[1749049210662,2.54356886,156.71,156.66,19.07613357]
[1749049210859,2.54356886,156.71,156.68,19.07613357]
[1749049211089,2.54356886,156.71,156.7,45.21829514]
[1749049211271,1.6528,156.78,156.71,19.21829514]
[1749049211467,1.6528,156.82,156.71,35.03296356]
[1749049211783,1.6528,156.82,156.75,19.21829514]
[1749049212169,10.90594732,156.91,156.79,19.21829514]
[1749049212170,7.858,156.9,156.79,19.21829514]
[1749049212372,26.0,156.87,156.76,33.0463178]
[1749049212578,27.5441,156.86,156.77,0.56864628]
[1749049212885,1.5441,156.86,156.77,0.56864628]
[1749049213261,1.5441,156.86,156.77,3.70574918]
[1749049213487,1.5441,156.86,156.77,0.56864628]
[1749049213685,1.5441,156.86,156.79,0.28432314]
[1749049214858,1.5441,156.86,156.81,18.79181043]
[1749049215056,6.3139,156.9,156.82,0.42648471]
[1749049215057,7.8939,156.9,156.82,0.42648471]
[1749049216158,1.58,156.9,156.82,0.42648471]
[1749049216391,0.8677765,156.91,156.85,19.21829514]
[1749049217411,0.8677765,156.91,156.86,0.14216157]
[1749049218512,0.8677765,156.91,156.85,0.14216157]
[1749049220822,0.8677765,156.91,156.84,0.56864628]
[1749049220998,0.8677765,156.91,156.86,0.28432314]
[1749049222698,0.8677765,156.91,156.86,0.56864628]
[1749049229426,0.8677765,156.91,156.86,0.14216157]
[1749049229626,0.8677765,156.91,156.84,0.14216157]
[1749049229627,0.8677765,156.91,156.85,0.28432314]
[1749049229930,0.8677765,156.91,156.85,0.42648471]
[1749049231753,1.5604,156.9,156.8,18.79181043]
[1749049232927,1.5604,156.9,156.81,0.42648471]
[1749049233252,1.5604,156.9,156.81,0.14216157]
[1749049233744,1.5604,156.9,156.81,0.42648471]
[1749049234048,6.3175,156.89,156.78,18.79181043]
[1749049234417,6.3175,156.89,156.79,0.28432314]
[1749049234650,6.3175,156.89,156.79,0.14216157]
[1749049235451,32.3175,156.89,156.79,0.14216157]
[1749049235624,1.5881,156.88,156.72,7.9981]
[1749049235834,8.1215,156.85,156.73,0.14216157]
[1749049236017,8.1215,156.85,156.73,29.38890612]
[1749049236218,8.1215,156.85,156.73,26.14216157]
[1749049236447,8.1215,156.85,156.75,0.14216157]
[1749049236945,8.1215,156.85,156.77,0.28432314]
[1749049237512,7.6215,156.85,156.77,0.28432314]
[1749049238849,7.6215,156.85,156.76,0.28432314]
[1749049239713,7.6215,156.85,156.75,0.14216157]
[1749049239915,7.6215,156.85,156.75,26.14216157]
[1749049240114,7.6215,156.85,156.75,26.0]
[1749049240550,7.6215,156.85,156.73,0.14216157]
[1749049240852,7.6215,156.85,156.73,0.56864628]
[1749049241014,18.64964886,156.84,156.73,0.14216157]
[1749049241210,18.64964886,156.84,156.71,0.14216157]
[1749049241428,18.64964886,156.84,156.71,0.56864628]
[1749049241650,18.64964886,156.84,156.71,0.14216157]
[1749049241920,1.5191,156.83,156.69,7.037114]
[1749049242124,26.0,156.81,156.7,0.14216157]
[1749049242326,6.6509,156.8,156.7,0.14216157]
[1749049242623,1.5191,156.79,156.7,26.14216157]
[1749049242836,1.5191,156.79,156.7,0.14216157]
[1749049243157,1.5191,156.79,156.68,0.14216157]
[1749049243362,1.5191,156.79,156.7,26.0]
[1749049245964,1.5191,156.79,156.68,0.28432314]
[1749049246146,1.5191,156.79,156.69,26.0]
[1749049248446,18.64964886,156.78,156.67,0.42648471]
[1749049248753,18.64964886,156.78,156.67,0.28432314]
[1749049249168,18.64964886,156.78,156.67,0.42648471]
[1749049249451,18.64964886,156.78,156.67,26.42648471]
[1749049250282,18.64964886,156.76,156.66,8.33333333]
[1749049254572,34.1315,156.77,156.66,8.33333333]
[1749049255971,34.1315,156.77,156.67,0.42648471]
[1749049256286,8.1315,156.77,156.68,0.14216157]
[1749049257584,8.1315,156.77,156.67,6.49318471]
[1749049257781,8.1315,156.77,156.67,0.56864628]
[1749049257985,8.1315,156.77,156.67,0.42648471]
[1749049258177,8.1315,156.77,156.66,8.33333333]
[1749049258576,18.64964886,156.76,156.66,8.33333333]
[1749049258886,44.64964886,156.76,156.66,8.33333333]
[1749049259486,26.0,156.73,156.66,8.33333333]
[1749049259664,1.5804,156.72,156.66,8.33333333]
[1749049261678,7.9419,156.72,156.66,8.33333333]
[1749049263186,18.64964886,156.76,156.66,8.33333333]
[1749049263187,1.5746,156.76,156.66,8.33333333]
[1749049263375,1.5746,156.76,156.67,0.42648471]
[1749049264201,1.5746,156.76,156.66,8.33333333]
[1749049265003,1.5746,156.76,156.67,0.56864628]
[1749049267001,1.6474,156.8,156.7,0.56864628]
[1749049267304,1.6474,156.8,156.72,0.42648471]
[1749049269496,1.607,156.84,156.72,0.56864628]
[1749049269668,26.0,156.82,156.72,0.56864628]
[1749049270183,1.607,156.84,156.74,0.28432314]
[1749049270402,1.607,156.84,156.74,19.21829514]
[1749049270589,26.0,156.82,156.74,19.21829514]
[1749049271385,27.607,156.84,156.74,0.56864628]
[1749049272177,26.0,156.82,156.73,0.14216157]
[1749049273006,26.0,156.82,156.72,0.56864628]
[1749049275175,26.0,156.82,156.71,1.5578]
[1749049275386,26.0,156.82,156.7,26.14216157]
[1749049275609,18.64964886,156.81,156.7,0.14216157]
[1749049276007,18.64964886,156.81,156.68,6.7345]
[1749049276210,6.5879,156.79,156.69,0.14216157]
[1749049276438,6.5879,156.79,156.69,0.42648471]
[1749049276719,6.5879,156.79,156.69,0.14216157]
[1749049277086,6.5879,156.79,156.68,0.40432314]
[1749049277390,6.5879,156.79,156.68,0.26216157]
[1749049277594,18.64964886,156.78,156.67,1.5822]
[1749049278797,6.5879,156.79,156.68,0.42648471]
[1749049279003,6.5879,156.79,156.68,0.56864628]
[1749049279983,6.5879,156.79,156.68,0.42648471]
[1749049280890,18.64964886,156.78,156.66,34.33333333]
[1749049281095,18.64964886,156.78,156.66,8.33333333]
[1749049282014,26.0,156.75,156.66,8.33333333]
[1749049282293,1.5921,156.74,156.66,8.33333333]
[1749049285995,4.92042684,156.74,156.66,8.33333333]
[1749049286488,32.4487,156.72,156.66,8.33333333]
[1749049287991,26.0,156.72,156.66,8.33333333]
[1749049288186,4.92042684,156.74,156.66,8.33333333]
[1749049288510,1.5921,156.74,156.66,8.33333333]
[1749049289320,6.387,156.76,156.66,8.33333333]
[1749049289504,18.64964886,156.75,156.66,8.33333333]
[1749049289823,44.64964886,156.75,156.66,8.33333333]
[1749049296224,1.5825,156.71,156.66,8.33333333]
[1749049297153,27.5825,156.71,156.66,8.33333333]
[1749049297461,44.64964886,156.74,156.66,8.33333333]
[1749049301724,7.8994,156.76,156.66,9.89703333]
[1749049302130,7.8994,156.76,156.66,1.5637]
[1749049303349,26.0,156.73,156.66,7.8004]
[1749049303858,7.8994,156.76,156.67,0.56864628]
[1749049304150,27.5124,156.76,156.67,0.56864628]
[1749049304356,18.64964886,156.79,156.67,0.56864628]
[1749049305054,26.0,156.76,156.67,0.56864628]
[1749049306167,26.0,156.76,156.67,0.68864628]
[1749049307554,26.0,156.76,156.67,0.56864628]
[1749049307735,26.0,156.77,156.67,0.56864628]
[1749049308930,26.0,156.77,156.67,0.68864628]
[1749049310046,26.0,156.77,156.67,0.56864628]
[1749049311131,18.64964886,156.76,156.66,7.8004]
[1749049311334,26.0,156.77,156.67,0.14216157]
[1749049311652,26.0,156.76,156.67,0.56864628]
[1749049314166,26.0,156.76,156.66,7.8004]
[1749049314838,26.0,156.76,156.66,1.5637]
[1749049314839,18.64964886,156.75,156.66,1.5637]
[1749049315044,1.6087,156.74,156.65,26.0]
[1749049315356,7.7519,156.74,156.63,0.14216157]
[1749049315681,7.7519,156.74,156.63,0.56864628]
[1749049315858,7.7519,156.74,156.63,0.42648471]
[1749049316058,7.7519,156.74,156.63,0.56864628]
[1749049318277,18.64964886,156.73,156.62,8.0937]
[1749049319281,44.64964886,156.73,156.62,8.0937]
[1749049320159,44.64964886,156.73,156.62,1.5116]
[1749049320360,44.64964886,156.73,156.6,0.14216157]
[1749049320361,26.0,156.7,156.6,0.14216157]
[1749049320653,26.0,156.7,156.59,0.42648471]
[1749049321072,26.0,156.7,156.59,0.14216157]
[1749049321448,26.0,156.7,156.59,0.28432314]
[1749049321876,26.0,156.7,156.59,0.42648471]
[1749049322179,26.0,156.71,156.61,0.56864628]
[1749049322707,26.0,156.71,156.61,0.42648471]
[1749049323275,18.64964886,156.7,156.59,0.14216157]
[1749049323457,1.6407,156.69,156.59,0.56864628]
[1749049324878,18.64964886,156.68,156.58,33.7586]
[1749049325452,18.64964886,156.68,156.58,7.7586]
[1749049325884,18.64964886,156.66,156.56,172.0]
[1749049326079,18.64964886,156.66,156.56,26.0]
[1749049326278,18.64964886,156.66,156.57,0.14216157]
[1749049326461,18.64964886,156.66,156.57,0.28432314]
[1749049326669,18.64964886,156.66,156.57,0.42648471]
[1749049326864,18.64964886,156.66,156.57,0.56864628]
[1749049328165,18.64964886,156.66,156.57,0.42648471]
[1749049328563,18.64964886,156.66,156.57,0.28432314]
[1749049329102,18.64964886,156.66,156.56,0.42648471]
[1749049329315,18.64964886,156.66,156.56,0.28432314]
[1749049329602,26.0,156.63,156.55,0.28432314]
[1749049329815,26.0,156.63,156.55,0.42648471]
[1749049329987,26.0,156.63,156.55,0.56864628]
[1749049330300,27.6114,156.63,156.55,0.56864628]
[1749049330811,18.64964886,156.66,156.55,0.56864628]
[1749049331012,44.64964886,156.66,156.55,0.56864628]
[1749049331503,26.0,156.63,156.55,0.56864628]
[1749049331876,18.64964886,156.66,156.55,0.56864628]
[1749049332291,26.0,156.64,156.55,0.56864628]
[1749049332500,26.0,156.64,156.55,26.56864628]
[1749049334383,26.0,156.64,156.55,0.56864628]
[1749049343397,26.0,156.64,156.56,26.0]
[1749049345024,26.0,156.64,156.57,0.56864628]
[1749049345224,1.51,156.71,156.61,0.56864628]
[1749049346019,26.0,156.7,156.61,0.56864628]
[1749049346322,1.51,156.71,156.61,0.56864628]
[1749049346643,26.0,156.7,156.61,0.56864628]
[1749049349207,26.0,156.7,156.61,26.56864628]
[1749049349522,18.64964886,156.69,156.61,26.56864628]
[1749049349737,18.64964886,156.69,156.61,26.28432314]
[1749049350038,18.64964886,156.69,156.62,0.14216157]
[1749049350908,26.0,156.66,156.62,0.14216157]
[1749049351309,26.0,156.66,156.59,0.14216157]
[1749049351620,26.0,156.66,156.59,0.28432314]
[1749049351820,26.0,156.66,156.59,0.42648471]
[1749049352131,26.0,156.66,156.59,0.56864628]
[1749049361243,18.64964886,156.7,156.59,0.56864628]
[1749049361532,26.0,156.67,156.59,0.56864628]
[1749049363918,44.64964886,156.7,156.59,0.56864628]
[1749049366744,44.64964886,156.7,156.59,146.56864628]
[1749049368536,26.0,156.67,156.59,0.56864628]
[1749049369125,26.0,156.67,156.59,0.28432314]
[1749049369648,26.0,156.67,156.59,0.56864628]
[1749049370646,18.64964886,156.7,156.59,0.56864628]
[1749049370827,26.0,156.67,156.59,0.56864628]
[1749049375452,26.0,156.65,156.59,0.56864628]
[1749049375836,27.5542,156.65,156.59,0.14216157]
[1749049376430,26.0,156.64,156.57,0.14216157]
[1749049376838,26.0,156.64,156.57,0.42648471]
[1749049378851,26.0,156.64,156.57,0.14216157]
[1749049380540,26.0,156.64,156.55,0.28432314]
[1749049385168,26.0,156.64,156.56,0.28432314]
[1749049389244,26.0,156.66,156.56,0.28432314]
[1749049391764,26.0,156.66,156.59,0.56864628]
[1749049391969,26.0,156.68,156.6,18.64964886]
[1749049392641,1.6493,156.69,156.61,0.56864628]
[1749049396648,26.0,156.68,156.6,0.42648471]
[1749049396982,26.0,156.68,156.61,0.14216157]
[1749049397348,27.6493,156.69,156.61,0.14216157]
[1749049401475,26.0,156.68,156.58,26.56864628]
[1749049404270,26.0,156.68,156.59,18.64964886]
[1749049404466,26.0,156.68,156.61,18.64964886]
[1749049405359,26.0,156.68,156.63,0.56864628]
[1749049406453,26.0,156.68,156.64,4.69634258]
[1749049406766,26.0,156.68,156.63,0.56864628]
[1749049409884,1.6493,156.69,156.59,19.21829514]
[1749049410087,1.6493,156.69,156.63,0.56864628]
[1749049410396,32.3458,156.71,156.63,0.56864628]
[1749049411768,32.3458,156.71,156.63,0.42648471]
[1749049414276,32.3458,156.71,156.63,0.14216157]
[1749049422591,18.64964886,156.7,156.61,0.42648471]
[1749049422837,18.64964886,156.7,156.61,0.14216157]
[1749049429106,18.64964886,156.7,156.62,4.69781714]
[1749049429304,18.64964886,156.7,156.63,4.69781263]
[1749049429478,18.64964886,156.7,156.61,0.14216157]
[1749049430589,18.64964886,156.7,156.62,4.69790459]
[1749049430787,18.64964886,156.7,156.61,0.14216157]
[1749049430990,18.64964886,156.7,156.62,4.69721151]
[1749049431175,18.64964886,156.7,156.61,0.14216157]
[1749049433102,3.66720248,156.69,156.61,0.14216157]
[1749049433288,18.64964886,156.7,156.61,0.14216157]
[1749049433487,3.6671404,156.69,156.61,0.14216157]
[1749049433805,1.5594,156.69,156.61,0.14216157]
[1749049434698,26.0,156.67,156.58,0.14216157]
[1749049434880,26.0,156.67,156.58,19.21829514]
[1749049435078,26.0,156.67,156.58,0.14216157]
[1749049435815,26.0,156.67,156.58,0.42648471]
[1749049436100,18.64964886,156.65,156.55,0.14216157]
[1749049436311,18.64964886,156.65,156.55,26.68864628]
[1749049436479,18.64964886,156.65,156.55,26.26216157]
[1749049436680,18.64964886,156.65,156.56,0.42648471]
[1749049437110,20.24084886,156.65,156.56,0.42648471]
[1749049437690,20.24084886,156.65,156.56,0.28432314]
[1749049438085,1.5912,156.65,156.56,0.42648471]
[1749049438406,1.5912,156.65,156.56,19.07613357]
[1749049438614,26.0,156.66,156.57,18.79181043]
[1749049438924,26.0,156.67,156.58,19.07613357]
[1749049439213,1.5132,156.69,156.58,20.64073357]
[1749049439381,27.5132,156.69,156.58,20.64073357]
[1749049440213,18.64964886,156.68,156.59,0.14216157]
[1749049440379,18.64964886,156.66,156.57,6.1389]
[1749049440704,27.5132,156.69,156.58,0.28432314]
[1749049440914,22.31461033,156.68,156.58,0.28432314]
[1749049441115,3.66496147,156.67,156.58,0.56864628]
[1749049441284,26.0,156.65,156.58,0.56864628]
[1749049441906,26.0,156.67,156.58,19.21829514]
[1749049442291,26.0,156.67,156.58,0.56864628]
[1749049443990,18.64964886,156.66,156.58,0.28432314]
[1749049444592,18.64964886,156.66,156.58,0.14216157]
[1749049445018,18.64964886,156.66,156.56,0.28432314]
[1749049445192,18.64964886,156.66,156.56,0.14216157]
[1749049447204,1.6359,156.65,156.56,0.14216157]
[1749049447906,7.7827,156.65,156.56,0.14216157]
[1749049448705,26.0,156.63,156.56,0.14216157]
[1749049449586,7.7827,156.65,156.56,0.14216157]
[1749049449793,26.0,156.63,156.56,0.14216157]
[1749049451309,26.0,156.62,156.56,0.14216157]
[1749049452705,26.0,156.62,156.55,19.21829514]
[1749049453012,27.6359,156.65,156.55,19.21829514]
[1749049453313,26.0,156.66,156.55,19.21829514]
[1749049453518,3.66051625,156.68,156.59,0.56864628]
[1749049453727,26.0,156.66,156.59,0.56864628]
[1749049453899,3.66056175,156.68,156.59,0.56864628]
[1749049454293,26.0,156.68,156.59,0.56864628]
[1749049454593,3.66072003,156.68,156.59,8.39364628]
[1749049454795,29.66072003,156.68,156.59,8.39364628]
[1749049455102,26.0,156.68,156.59,8.39364628]
[1749049455508,26.0,156.66,156.59,8.39364628]
[1749049455891,26.0,156.66,156.59,1.86772314]
[1749049457389,18.64964886,156.65,156.55,6.04]
[1749049457708,26.0,156.64,156.56,0.68864628]
[1749049458225,26.0,156.64,156.56,0.40432314]
[1749049458513,26.0,156.64,156.55,6.04]
[1749049458819,26.0,156.64,156.54,0.14216157]
[1749049458820,27.5051,156.64,156.54,0.14216157]
[1749049459020,1.5051,156.64,156.54,0.26216157]
[1749049459205,26.0,156.62,156.54,0.26216157]
[1749049460290,26.0,156.62,156.54,0.14216157]
[1749049460496,1.5051,156.64,156.54,0.14216157]
[1749049460715,26.0,156.62,156.54,0.14216157]
[1749049461306,26.0,156.6,156.53,0.28432314]
[1749049461621,26.0,156.6,156.53,0.14216157]
[1749049461916,25.25524886,156.63,156.53,0.28432314]
[1749049462797,25.25524886,156.63,156.53,0.56864628]
[1749049463002,26.0,156.62,156.53,0.56864628]
[1749049467146,27.5051,156.64,156.53,0.56864628]
[1749049467433,1.5051,156.64,156.55,0.56864628]
[1749049468015,27.5051,156.64,156.55,0.56864628]
[1749049470916,27.5051,156.64,156.55,0.14216157]
[1749049471442,26.0,156.63,156.55,0.56864628]
[1749049472005,27.5051,156.64,156.55,0.56864628]
[1749049474408,26.0,156.64,156.55,0.56864628]
[1749049477732,18.64964886,156.66,156.55,0.56864628]
[1749049477930,18.64964886,156.66,156.55,0.68864628]
[1749049478733,32.3916,156.67,156.55,0.68864628]
[1749049478734,32.3916,156.67,156.56,18.64964886]
[1749049479038,32.3916,156.67,156.56,24.90784886]
[1749049481112,26.0,156.67,156.57,28.15164628]
[1749049481440,1.5765,156.68,156.6,0.56864628]
[1749049485416,6.6531,156.71,156.65,0.28432314]
[1749049485618,27.5076,156.72,156.65,0.28432314]
[1749049486015,1.5076,156.72,156.65,0.28432314]
[1749049486333,1.6361,156.76,156.65,0.56864628]
[1749049487227,1.6361,156.76,156.69,0.28432314]
[1749049487820,1.6361,156.76,156.68,26.0]
[1749049488339,18.64964886,156.75,156.68,26.0]
[1749049488926,18.64964886,156.75,156.65,26.0]
[1749049493451,18.64964886,156.73,156.65,26.0]
[1749049494137,25.01804886,156.73,156.64,26.0]
[1749049494559,18.64964886,156.71,156.62,0.28432314]
[1749049494742,18.64964886,156.71,156.62,0.42648471]
[1749049494943,18.64964886,156.71,156.62,0.56864628]
[1749049497943,18.64964886,156.71,156.61,32.3588]
[1749049498163,44.64964886,156.71,156.61,32.3588]
[1749049498766,44.64964886,156.71,156.61,26.0]
[1749049500668,26.0,156.68,156.59,0.56864628]
[1749049500969,26.0,156.68,156.6,26.0]
[1749049501146,18.64964886,156.67,156.6,26.0]
[1749049504572,20.24284886,156.67,156.6,26.0]
[1749049505556,26.0,156.64,156.58,0.28432314]
[1749049505751,26.0,156.64,156.57,7.7864]